Cogmind - Beta 15 @@@ ROGUE MODE // 2025.08.01 @ 23:45:04 Player: DURANDAL Result: Destroyed self via exploding Nuclear Reactor Performance ------------- Evolutions (0) 0 Regions Visited (1) 200 Robots Destroyed (11) 55 Value Destroyed (391) 391 Prototype IDs (0) 0 Alien Tech Used (0) 0 Bonus (0) 0 TOTAL SCORE: 646 Bonus ------- None Cogmind --------- Core Integrity 0/250 Matter 267/300 Energy 420/450 System Corruption 0% Temperature Cool (19) Movement Walking (750) Ox9 Location -10/Materials Parts ------- > --- POWER (1) -------- Ion Engine > --- PROPULSION (2) --- Aluminum Leg > --- UTILITY (2) ------ Huge Storage Unit Large Battery > --- WEAPON (2) ------- Grenade Launcher Mining Laser > --- INVENTORY (25) --- Ion Engine Ion Engine Light Treads Improved Heat Sink Small Storage Unit Large Battery (200) Medium Matter Pod (95) Peak State ------------ > --- POWER ------------ Light Nuclear Core > --- PROPULSION ------- Light Treads Light Treads > --- UTILITY ---------- Small Storage Unit Large Battery > --- WEAPON ----------- Light Assault Rifle Light Assault Rifle > --- INVENTORY -------- Ion Engine Ion Engine Aluminum Leg Improved Heat Sink Large Battery [Rating: 9] Favorites ----------- Power Ion Engine Engine Ion Engine Power Core Light Nuclear Core Propulsion Aluminum Leg Treads Light Treads Leg Aluminum Leg Utility Large Battery Storage Large Battery Weapon Light Assault Rifle Ballistic Gun Light Assault Rifle Launcher Grenade Launcher Special Weapon Mining Laser Build | -11 -10 ------- Run | Yrd Mat Slots Evolved . | . . Power . | . . Propulsion . | . . Utility . | . . Weapon . | . . Parts Attached 14 | 5 9 Power 3 | 1 2 Engine 2 | 1 1 Core 1 | . 1 Reactor . | . . Propulsion 4 | 2 2 Treads 2 | 2 . Leg 2 | . 2 Wheel . | . . Hover . | . . Flight . | . . Utility 3 | . 3 Device . | . . Storage 3 | . 3 Processor . | . . Hackware . | . . Protection . | . . Artifact . | . . Weapon 4 | 2 2 Energy Gun . | . . Energy Cannon . | . . Ballistic Gun 2 | 2 . Ballistic Cannon . | . . Launcher 1 | . 1 Special Weapon 1 | . 1 Impact Weapon . | . . Slashing Weapon . | . . Piercing Weapon . | . . Special Melee Weapon . | . . Unidentified Prototypes . | . . Parts Lost 5 | . 5 Power 1 | . 1 Propulsion 2 | . 2 Utility . | . . Weapon 2 | . 2 Highest Loss Streak 3 | . 3 To Critical Strikes . | . . Average Backups 6 | 1 6 Power 1 | . 1 Propulsion . | . . Utility 2 | . 2 Weapon . | . 1 Tool/Special . | . . Unused Backups 5 | . 5 Power 2 | . 2 Propulsion . | . . Utility 3 | . 3 Weapon . | . . Tool/Special . | . . Average Slot Usage (%) 91 | . 91 Engine 11 | . 11 Core 2 | . 2 Treads 11 | . 11 Leg 13 | . 13 Storage 23 | . 23 Ballistic Gun 27 | . 27 Peak Build Rating 9 | 5 9 Average Rating 7 | 3 7 On Entrance 2 | . 5 Naked Turns . | . . Heaviest Build 90 | 7 90 Greatest Support 40 | 40 40 Greatest Overweight (x) 4 | . 4 Average Overweight (x) . | . . Largest Inventory Capacity 25 | 5 25 Average Capacity 13 | 5 13 Most Carried 9 | 5 9 Average Carried 6 | 1 6 Final Capacity 25 | 5 25 Final Carried 7 | 2 7 Class Distribution -------------------- 100% | Mutant Dominant Class ---------------- Mutant | -10/Materials Resources | -11 -10 ----------- Run | Yrd Mat Matter Collected 514 | 250 264 Remotely . | . . Salvage Created 469 | . 469 Parts 26 | . 26 Haulers Intercepted 1 | . 1 Recyclers Shooed 1 | . 1 Parts Field Recycled . | . . Retrieved Matter . | . . Parts Self-Destructed . | . . Prevented . | . . Kills | -11 -10 ------- Run | Yrd Mat Combat Hostiles Destroyed 10 | . 10 Guns 9 | . 9 AOE 1 | . 1 Classes Destroyed 2 | . 2 Hauler 1 | . 1 Grunt 10 | . 10 Best Kill Streak 2 | . 2 Combat Bots Only 2 | . 2 Max Kills in Single Turn 1 | . 1 Gunslinging . | . . Exploded 1 | . 1 Melee . | . . Uniques/NPCs Destroyed . | . . Combat | -11 -10 -------- Run | Yrd Mat Hostile Shots Fired 96 | . 96 Missed 24 | . 24 Hits 72 | . 72 Projectile 72 | . 72 Critical Strikes 4 | . 4 Damage Taken 1098 | . 1098 Core 297 | . 297 Absorbed by Shields . | . . Core Remaining (%) 100 | 100 . Volleys Fired 66 | . 66 Largest 2 | . 2 Hottest 100 | . 100 Shots Fired 128 | . 128 Gun 126 | . 126 Cannon . | . . Launcher 1 | . 1 Special 1 | . 1 Kinetic 126 | . 126 Thermal 1 | . 1 Explosive 1 | . 1 Electromagnetic . | . . Robot Hit Streak 13 | . 13 Robot Miss Streak 7 | . 7 Penetration Max . | . . Secondary Targets . | . . Shots Hit Robots 82 | . 82 Core Hits 33 | . 33 Critical Kills . | . . Critical Parts Destroyed . | . . Critical Strikes . | . . Melee Attacks . | . . Impact . | . . Slashing . | . . Piercing . | . . Sneak Attacks . | . . Combat Hostiles . | . . Follow-up Attacks . | . . Damage Inflicted 729 | . 729 Guns 655 | . 655 Cannons . | . . Explosions 46 | . 46 Melee . | . . Ramming 4 | . 4 Kinetic 655 | . 655 Thermal 24 | . 24 Explosive 46 | . 46 Electromagnetic . | . . Impact . | . . Slashing . | . . Piercing . | . . Highest Corruption . | . . Average Corruption . | . . Corruption Purged . | . . Corruption Blocked . | . . Overload Shots . | . . Overflow Damage 90 | . 90 Projectiles . | . . Explosions 90 | . 90 Melee . | . . Knockbacks . | . . Impact . | . . Kinetic . | . . Secondary . | . . Self-Inflicted Damage 97 | . 97 Shots 1 | . 1 Rammed 2 | . 2 Targets Rammed 3 | . 3 Kicked 1 | . 1 Crushed . | . . Highest Temperature 41 | . 41 Average Temperature 11 | . 11 Received Heat Transfer 636 | . 636 Siege Activations . | . . Martial Activations . | . . Shielding Activations . | . . Robots Disrupted . | . . Combat Hostiles . | . . Robots Corrupted . | . . Combat Hostiles . | . . Parts Fried . | . . Impact Corruptions . | . . Robots Melted . | . . Combat Hostiles . | . . Parts Melted . | . . Heat Transferred 50 | . 50 Parts Sabotaged . | . . Parts Stolen . | . . Parts Stripped . | . . Power Chain Reactions . | . . Alert | -11 -10 ------- Run | Yrd Mat Maximum Alert Level . | . . Low Security (%) 100 | 100 100 Level 1 . | . . Level 2 . | . . Level 3 . | . . Level 4 . | . . Level 5 . | . . High Security . | . . Max Security . | . . Peak Influence 129 | . 129 Initial . | . . Average 34 | . 36 Influence Increases 392 | . 392 Destroy 0b10 Robot/C 200 | . 200 Destroy 0b10 Robot/NC 5 | . 5 Destroy Leader 42 | . 42 Successful Hack 5 | . 5 Disable Machine 15 | . 15 Destroy Structure 5 | . 5 Lose Combat Pursuer 120 | . 120 Influence Decreases 362 | . 362 Time Decay 352 | . 352 Lost Part 10 | . 10 Squads Dispatched 3 | . 3 Investigation . | . . Extermination . | . . Reinforcement 3 | . 3 Assault . | . . Garrison . | . . Intercept . | . . Searches Triggered . | . . Construction Impeded . | . . Haulers Reinforced . | . . Active Scanning Responses . | . . Cargo Convoy Interrupts . | . . Stealth | -11 -10 --------- Run | Yrd Mat Distress Signals 3 | . 3 Communications Jammed . | . . Distress Signals . | . . Times Spotted 29 | . 29 Peak Tracking Total 4 | . 4 Tactical Retreats 5 | . 5 Traps | -11 -10 ------- Run | Yrd Mat Traps Triggered . | . . Indirectly . | . . Trap Hack Attempts . | . . Triggered . | . . Disarmed . | . . Reprogrammed . | . . Reused . | . . Traps Extracted . | . . Installed . | . . Triggered . | . . Machines | -11 -10 ---------- Run | Yrd Mat Machines Disabled 1 | . 1 Max in Single Turn 1 | . 1 Machines Repaired . | . . Machines Dismantled . | . . Machines Sabotaged . | . . Overloaded Fab Kills . | . . Hacking | -11 -10 --------- Run | Yrd Mat Machines Accessed 3 | . 3 Terminals 2 | . 2 Fabricators . | . . Repair Stations . | . . Recycling Units 1 | . 1 Scanalyzers . | . . Garrison Access . | . . Total Hacks 3 | . 3 Successful 3 | . 3 Failed . | . . Catastrophic . | . . Database Lockouts . | . . Manual 3 | . 3 Terminals 2 | . 2 Fabricators . | . . Repair Stations . | . . Recycling Units 1 | . 1 Scanalyzers . | . . Garrison Access . | . . Terminal Hacks . | . . Fabricator Hacks . | . . Repair Station Hacks . | . . Recycling Unit Hacks 1 | . 1 Report Inventory 1 | . 1 Scanalyzer . | . . Garrison Access Hacks . | . . Unauthorized Hacks 2 | . 2 Terminals 2 | . 2 Botnet 2 | . 2 Fabricators . | . . Repair Stations . | . . Recycling Units . | . . Scanalyzers . | . . Garrison Access . | . . Data Cores Recovered . | . . Used . | . . Hacking Detections 2 | . 2 Full Trace Events . | . . Feedback Events . | . . Feedback Blocked . | . . Robot Schematics Acquired . | . . Robots Built . | . . Authchips . | . . Time . | . . Total Robot Build Rating . | . . Part Schematics Acquired . | . . Parts Built . | . . Authchips . | . . Time . | . . Total Part Build Rating . | . . Parts Repaired . | . . Time . | . . Parts Recycled . | . . Recycled Matter . | . . Retrieved Matter . | . . Retrieved Components . | . . Parts Scanalyzed . | . . Part Schematics Acquired . | . . Parts Damaged . | . . Bothacking | -11 -10 ------------ Run | Yrd Mat Used RIF Installer . | . . Robots Hacked . | . . Non-combat . | . . Combat . | . . Robot Hacks Applied . | . . Relay Couplers Released . | . . Fabnet Peak Effective % . | . . Robots Rewired . | . . Allies Hacked . | . . Hacks Repelled . | . . Allies | -11 -10 -------- Run | Yrd Mat Total Allies . | . . Largest Group . | . . Highest-Rated Group . | . . Highest-Rated Ally . | . . Total Orders . | . . Ally Attacks . | . . Total Damage . | . . Kills . | . . Allies Corrupted . | . . Allies Melted . | . . Intel | -11 -10 ------- Run | Yrd Mat Active Infowar (turns) . | . . Robot Analysis Total . | . . Derelict Logs Recovered . | . . Drone Launches . | . . Drone Recoveries . | . . Exploration | -11 -10 ------------- Run | Yrd Mat Turns Passed 1134 | 64 1070 Spaces Moved 442 | 42 400 Core 13 | 13 . Treads 254 | 29 225 Legs 175 | . 175 Wheels . | . . Hover . | . . Flight . | . . Fastest Speed 50 | 50 120 Average Speed 194 | 125 201 Slowest Speed 400 | 160 400 Overloaded Moves . | . . Propulsion Burnouts . | . . Robots Hopped . | . . Potential Cave-ins . | . . Cave-ins Triggered . | . . Exploration Rate (%) 34 | 4 65 Regions Visited 1 Branch Regions . Pre-discovered Areas . | . . Known Exits Taken . | . . Unknown Exits Taken 1 | 1 . Scrap Searched . | . . Spaces Dug . | . . Terrain Destroyed 4 | . 4 Melee . | . . Projectile . | . . AOE 4 | . 4 Terrain Rammed . | . . Walls Destroyed . | . . Machines Disabled . | . . Actions | -11 -10 --------- Run | Yrd Mat Total 609 | 53 556 Wait 62 | . 62 Move 441 | 41 400 Hop . | . . Pick Up 20 | 7 13 Fast Attach . | . . Attach 11 | 5 6 Detach . | . . Swap 4 | . 4 Drop 2 | . 2 Fire 66 | . 66 Melee . | . . Ram . | . . Kick 1 | . 1 Crush 2 | . 2 Escape Stasis . | . . Rewire . | . . Trap . | . . Miscellaneous . | . . Route ------- -11/Scrapyard -10/Materials (discovered 3 exits: [*Mat] / [*Min x2]) History --------- Turn | Location | Event 6 | -11/Scrapyard | Discovered new exit (range 15) 65 | -11/Scrapyard | Entered Materials 65 | -10/Materials | Discovered new exit (range 8) 304 | -10/Materials | Build established: Mutant 443 | -10/Materials | Discovered new exit (range 6) 616 | -10/Materials | Core integrity fell below 50% 908 | -10/Materials | Discovered new exit (range 15) 1121 | -10/Materials | Core integrity fell below 20% 1135 | -10/Materials | Destroyed self via exploding Nuclear Reactor Last Messages --------------- 00759_ K-01 Serf cleans the TF Node. 00768_ Dropped Imp. Heat Sink. 00769_ Acquired Huge Storage Unit. 00775_ Acquired Imp. Heat Sink. 00783_ K-01 Serf cleans the Atomic Centrifuge. 00786_ K-01 Serf collects debris. 00791_ K-01 Serf cleans the Atomic Centrifuge. 00792_ Kicked R-06 Scavenger. 00908_ EXIT=FOUND 00956_ Connecting with Terminal... >>Trojan(Botnet) Trojan loaded successfully. Testing... Terminal linked with 1 system. Awaiting botnet instructions. 01124_ Lgt. Assault Rifle destroyed. 01130_ G-34 Mercenary destroyed. 01135_ Nuclear Reactor explodes. 01135_ Aluminum Leg destroyed. 01135_ Destroyed Aluminum Leg. Map ----- +----------------------------------------------------+ | | | | | | | | | | | | | | | | | | | | | | | | | | | | | | | ?????????????????????????????????????????????????? | | ?????????????????????????????????????????????????? | | ?????????????????????????????????????????????????? | | ?????????????????????????????????????????????????? | | ???????###################################???????? | | ?????? ????????? | | ?????? #???????????? | | ?????? #???????????? | | ?????????????#+############ ##########?????????? | | ???????????????????# # # #?????????? | | ???????????????????# @# # """ #????????## | | ???????????????????# g # """ #???????? | | ???????????????????# * # """ #???????? < | | ???????????????????# + #???????# | | ???????????????????# = # """ ######### | | ???????????????????# """ ## # """ ## T | | ???????????????????#= """ ## # """ + | | ???????????????????# """ ### # ## | | ???????????????????# #?# #####+##### | | ???????????????????#######??# #???# #???# | | ????????????????????????????# #???# #???# | | ????????????##??????????????? #???# ##### | | ???????????? ??????????????? ? | | ???????????# ??????????????? | | ??????????## #?????????????? ? | | ??????????# #??????????????#?######+### | | ?????????## ^ #?????????????????????????# | | ?????????+ #?????????????????????????# | | ###+##???# #?????????????????????????# | | ##### #?????????????????????????# | | #?????????????????????????# | | #?????????????????????????# | | "" == """ #?????????????????????????####### | | "" == """ #?????#########?????????????????# | | "" = """ ####### ######????????????# | +----------------------------------------------------+ Best States ------------- Heat Dissipation 25 Energy Generation 14 Energy Capacity 450 Matter Stores 300 Matter Capacity 300 Sight Range 16 Terrain Scan Density 10 Evasion (%) 55 Recoil Reduction 2 Item Schematics ----------------- None Robot Schematics ------------------ None Fabricated ------------ Nothing Repaired ---------- Nothing Alien Tech Used ----------------- None Achievements -------------- None Challenges ------------ None Game ------ Seed ReflectiveDynamicLauncher Manual? 0 Play Time 00:11:17 Cumulative 24.6 hours Start 2025.08.01 @ 23:31:25 End 2025.08.01 @ 23:45:04 Sessions 1 Manual Loads 0 Difficulty Rogue Special Mode None Game No. 47 Rogue 47 Adventurer 0 Explorer 0 Win Type - Total 0 Types 0/0/0/0/0/0/0/0/0/0 Lore% 19 Gallery% 18 Achievement% 19 Wizard Run 0 Options --------- Layout 1 ASCII 0 Keyboard 0 Movement Numpad Keybinds 0 Fullscreen 1 Font 32/SmallcapsGlow Map View 50x35 Zoom Use 0% Tactical HUD 1 Map Filters NONE Filters NONE Steam 1 RUN: 25eb2099-d8bd-4d32-9b60-c822f57ed4da